fUST/lending_fUST_20260213
["ID","MTS","AMOUNT","RATE_DAILY","PERIOD"]
[405321207,1770995228888,680.13719992,0.00014247,2]
[405321244,1770995438311,-171.0,0.00023843,2]
[405321246,1770995438322,-196.22771538,0.00024004,2]
[405321248,1770995438332,-424.99801537,0.00024165,2]
[405321250,1770995438342,-7442.2521994,0.00024169,2]
[405321252,1770995438352,-401.62641627,0.000242,2]
[405321254,1770995438362,-167.36809685,0.0002422,2]
[405321256,1770995438372,-500.0,0.0002422,2]
[405321258,1770995438381,-300.0,0.0002422,2]
[405321260,1770995438391,-300.0,0.0002422,2]
[405321262,1770995438401,-300.0,0.0002422,2]
[405321264,1770995438415,-1200.0,0.0002422,2]
[405321266,1770995438426,-402.16166545,0.00024221,2]
[405321268,1770995438435,-500.0,0.00024221,2]
[405321271,1770995438445,-500.0,0.00024221,2]
[405321273,1770995438455,-500.0,0.00024221,2]
[405321275,1770995438465,-500.0,0.00024221,2]
[405321276,1770995438475,-500.0,0.00024221,2]
[405321278,1770995438485,-500.0,0.00024221,2]
[405321280,1770995438495,-500.0,0.00024221,2]
[405321282,1770995438506,-500.0,0.00024221,2]
[405321284,1770995438515,-500.0,0.00024221,2]
[405321286,1770995438525,-500.0,0.00024221,2]
[405321288,1770995438535,-500.0,0.00024221,2]
[405321290,1770995438545,-500.0,0.00024221,2]
[405321292,1770995438555,-500.0,0.00024221,2]
[405321294,1770995438566,-500.0,0.00024221,2]
[405321295,1770995438576,-163.51867516,0.00024221,2]
[405321297,1770995438586,-500.0,0.00024221,2]
[405321299,1770995438595,-500.0,0.00024221,2]
[405321301,1770995438605,-500.0,0.00024221,2]
[405321303,1770995438615,-338.69918777,0.00024221,2]
[405321305,1770995438624,-500.0,0.00024221,2]
[405321307,1770995438635,-500.0,0.00024221,2]
[405321309,1770995438645,-500.0,0.00024221,2]
[405321311,1770995438657,-500.0,0.00024221,2]
[405321313,1770995438670,-500.0,0.00024221,2]
[405321315,1770995438681,-500.0,0.00024221,2]
[405321317,1770995438691,-500.0,0.00024221,2]
[405321318,1770995438701,-500.0,0.00024221,2]
[405321320,1770995438711,-500.0,0.00024221,2]
[405321322,1770995438722,-500.0,0.00024221,2]
[405321324,1770995438732,-500.0,0.00024221,2]
[405321326,1770995438742,-500.0,0.00024221,2]
[405321328,1770995438752,-500.0,0.00024221,2]
[405321330,1770995438762,-500.0,0.00024221,2]
[405321332,1770995438772,-433.61716856,0.00024221,2]
[405321334,1770995438783,-500.0,0.00024221,2]
[405321336,1770995438793,-500.0,0.00024221,2]
[405321338,1770995438802,-500.0,0.00024221,2]
[405321340,1770995438813,-500.0,0.00024221,2]
[405321342,1770995438822,-500.0,0.00024221,2]
[405321344,1770995438833,-500.0,0.00024221,2]
[405321346,1770995438842,-456.25197561,0.00024221,2]
[405321348,1770995438852,-280.83918753,0.00024221,2]
[405321349,1770995438862,-500.0,0.00024221,2]
[405321351,1770995438871,-500.0,0.00024221,2]
[405321353,1770995438882,-500.0,0.00024221,2]
[405321355,1770995438891,-500.0,0.00024221,2]
[405321357,1770995438902,-500.0,0.00024221,2]
[405321359,1770995438917,-500.0,0.00024221,2]
[405321361,1770995438928,-500.0,0.00024221,2]
[405321363,1770995438937,-500.0,0.00024221,2]
[405321365,1770995438948,-500.0,0.00024221,2]
[405321367,1770995438957,-500.0,0.00024221,2]
[405321369,1770995438967,-500.0,0.00024221,2]
[405321371,1770995438977,-500.0,0.00024221,2]
[405321373,1770995438986,-500.0,0.00024221,2]
[405321375,1770995439000,-500.0,0.00024221,2]
[405321377,1770995439010,-500.0,0.00024221,2]
[405321379,1770995439019,-500.0,0.00024221,2]
[405321381,1770995439029,-500.0,0.00024221,2]
[405321383,1770995439039,-500.0,0.00024221,2]
[405321385,1770995439048,-500.0,0.00024221,2]
[405321387,1770995439057,-500.0,0.00024221,2]
[405321389,1770995439067,-500.0,0.00024221,2]
[405321390,1770995439077,-500.0,0.00024221,2]
[405321392,1770995439087,-500.0,0.00024221,2]
[405321394,1770995439097,-500.0,0.00024221,2]
[405321396,1770995439106,-500.0,0.00024221,2]
[405321398,1770995439115,-500.0,0.00024221,2]
[405321400,1770995439125,-500.0,0.00024221,2]
[405321402,1770995439135,-500.0,0.00024221,2]
[405321404,1770995439145,-500.0,0.00024221,2]
[405321406,1770995439154,-500.0,0.00024221,2]
[405321408,1770995439167,-500.0,0.00024221,2]
[405321410,1770995439177,-500.0,0.00024221,2]
[405321412,1770995439188,-500.0,0.00024221,2]
[405321414,1770995439199,-500.0,0.00024221,2]
[405321416,1770995439209,-500.0,0.00024221,2]
[405321418,1770995439219,-500.0,0.00024221,2]
[405321420,1770995439229,-225.19101433,0.00024221,2]
[405321422,1770995439239,-500.0,0.00024221,2]
[405321424,1770995439249,-500.0,0.00024221,2]
[405321426,1770995439258,-500.0,0.00024221,2]
[405321428,1770995439268,-500.0,0.00024221,2]
[405321430,1770995439279,-500.0,0.00024221,2]
[405321432,1770995439288,-500.0,0.00024221,2]
[405321434,1770995439299,-500.0,0.00024221,2]
[405321436,1770995439309,-500.0,0.00024221,2]
[405321438,1770995439320,-475.0,0.00024221,2]
[405321440,1770995439329,-500.0,0.00024221,2]
[405321442,1770995439339,-500.0,0.00024221,2]
[405321443,1770995439349,-500.0,0.00024221,2]
[405321445,1770995439358,-500.0,0.00024221,2]
[405321447,1770995439368,-500.0,0.00024221,2]
[405321449,1770995439378,-500.0,0.00024221,2]
[405321451,1770995439388,-500.0,0.00024221,2]
[405321453,1770995439398,-500.0,0.00024221,2]
[405321455,1770995439410,-500.0,0.00024221,2]
[405321457,1770995439420,-500.0,0.00024221,2]
[405321459,1770995439429,-500.0,0.00024221,2]
[405321461,1770995439438,-500.0,0.00024221,2]
[405321462,1770995439447,-613.08379117,0.00024221,2]
[405321464,1770995439457,-500.0,0.00024221,2]
[405321466,1770995439466,-500.0,0.00024221,2]
[405321468,1770995439475,-151.0,0.00024223,2]
[405321470,1770995439484,-250.0,0.00024223,2]
[405321472,1770995439493,-250.0,0.00024223,2]
[405321474,1770995439503,-250.0,0.00024223,2]
[405321475,1770995439512,-266.91873962,0.00024223,2]
[405321477,1770995439522,-500.0,0.00024223,2]
[405321479,1770995439531,-250.0,0.00024223,2]
[405321481,1770995439540,-500.0,0.00024223,2]
[405321483,1770995439550,-250.0,0.00024223,2]
[405321485,1770995439559,-500.0,0.00024223,2]
[405321487,1770995439568,-250.0,0.00024223,2]
[405321489,1770995439577,-500.0,0.00024223,2]
[405321491,1770995439586,-250.0,0.00024223,2]
[405321493,1770995439596,-500.0,0.00024223,2]
[405321495,1770995439605,-250.0,0.00024223,2]
[405321497,1770995439615,-500.0,0.00024223,2]
[405321499,1770995439624,-500.0,0.00024223,2]
[405321501,1770995439633,-500.0,0.00024223,2]
[405321503,1770995439642,-250.0,0.00024223,2]
[405321505,1770995439651,-250.0,0.00024223,2]
[405321507,1770995439664,-500.0,0.00024223,2]
[405321509,1770995439674,-250.0,0.00024223,2]
[405321511,1770995439683,-273.28855637,0.00024223,2]
[405321512,1770995439692,-500.0,0.00024223,2]
[405321514,1770995439702,-250.0,0.00024223,2]
[405321516,1770995439711,-250.0,0.00024223,2]
[405321518,1770995439720,-500.0,0.00024223,2]
[405321520,1770995439729,-250.0,0.00024223,2]
[405321522,1770995439738,-250.0,0.00024223,2]
[405321524,1770995439747,-250.0,0.00024223,2]
[405321526,1770995439756,-250.0,0.00024223,2]
[405321528,1770995439765,-250.0,0.00024223,2]
[405321530,1770995439775,-250.0,0.00024223,2]
[405321532,1770995439784,-378.83486372,0.00024223,2]
[405321534,1770995439793,-209.40437684,0.00024223,2]
[405321536,1770995439802,-250.0,0.00024223,2]
[405321538,1770995439812,-217.15233878,0.00024223,2]
[405321540,1770995439821,-250.0,0.00024223,2]
[405321541,1770995439830,-225.18697532,0.00024223,2]
[405321543,1770995439839,-250.0,0.00024223,2]
[405321545,1770995439848,-233.51889341,0.00024223,2]
[405321547,1770995439858,-250.0,0.00024223,2]
[405321549,1770995439868,-242.15909246,0.00024223,2]
[405321551,1770995439877,-251.11897888,0.00024223,2]
[405321553,1770995439886,-260.4103811,0.00024223,2]
[405321555,1770995439895,-270.0455652,0.00024223,2]
[405321557,1770995439904,-280.03725112,0.00024223,2]
[405321559,1770995439914,-290.39862941,0.00024223,2]
[405321561,1770995439924,-301.1433787,0.00024223,2]
[405321563,1770995439933,-1000.0,0.00024234,5]
[405321565,1770995439943,-500.0,0.00024237,2]
[405321567,1770995439952,-500.0,0.00024237,2]
[405321569,1770995439961,-500.0,0.00024237,2]
[405321571,1770995439970,-500.0,0.00024237,2]
[405321573,1770995439979,-524.73,0.00024237,2]
[405321574,1770995439988,-524.73,0.00024237,2]
[405321577,1770995439998,-151.0,0.00024238,2]
[405321578,1770995440010,-157.980567,0.00024238,2]
[405321580,1770995440020,-500.0,0.00024239,2]
[405321582,1770995440029,-500.0,0.00024239,2]
[405321584,1770995440039,-524.73,0.00024239,2]
[405321586,1770995440048,-500.0,0.0002424,2]
[405321588,1770995440058,-171.0,0.00024252,2]
[405321590,1770995440067,-500.0,0.00024266,2]
[405321592,1770995440076,-500.0,0.00024269,2]
[405321594,1770995440089,-500.0,0.00024275,2]
[405321596,1770995440098,-227.92,0.00024284,2]
[405321598,1770995440107,-500.0,0.00024329,2]
[405321600,1770995440118,-320.0,0.00024329,2]
[405321602,1770995440127,-2069.83337837,0.00024358,3]
[405321604,1770995440137,-3442.30848839,0.00024369,2]
[405321606,1770995440147,-500.0,0.00024384,2]
[405321608,1770995440158,-500.0,0.00024439,2]
[405321610,1770995440169,-171.0,0.00024486,2]
[405321612,1770995440179,-500.0,0.00024494,2]
[405321614,1770995440188,-500.0,0.00024514,2]
[405321616,1770995440197,-500.0,0.00024549,2]
[405321618,1770995440207,-635.0,0.00024552,2]
[405321619,1770995440217,-189.89833749,0.00024575,2]
[405321621,1770995440226,-309.14710159,0.00024575,2]
[405321623,1770995440235,-352.95766227,0.00024575,2]
[405321625,1770995440244,-318.33588466,0.00024575,2]
[405321627,1770995440254,-292.61975683,0.00024575,2]
[405321629,1770995440264,-171.193223,0.00024575,2]
[405321631,1770995440273,-341.47519048,0.00024575,2]
[405321633,1770995440282,-301.05032617,0.00024575,2]
[405321635,1770995440291,-541.89058711,0.00024575,2]
[405321637,1770995440301,-154.8644968,0.00024602,3]
[405321639,1770995440310,-251.59308021,0.00024602,3]
[405321641,1770995440319,-428.11464762,0.00024602,3]
[405321643,1770995440328,-500.0,0.00024603,2]
[405321645,1770995440337,-613.49372077,0.00024657,2]
[405321647,1770995440348,-524.73,0.00024657,5]
[405321648,1770995440357,-500.0,0.00024658,2]
[405321650,1770995440366,-4237.13769962,0.00024662,3]
[405321652,1770995440376,-252.82939581,0.00024685,2]
[405321654,1770995440386,-170.27749071,0.00024713,2]
[405321656,1770995440396,-3036.4228358,0.0002474,2]
[405321658,1770995440405,-173.0,0.00024752,2]
[405321660,1770995440419,-16708.3,0.00024765,10]
[405321662,1770995440428,-183.55853361,0.00024776,2]
[405321664,1770995440438,-524.73,0.00024794,5]
[405321666,1770995440447,-354.11,0.00024795,3]
[405321668,1770995440457,-524.73,0.00024804,5]
[405321670,1770995440466,-3531.0224141,0.00024805,2]
[405321672,1770995440475,-3582.3494587,0.00024805,2]
[405321674,1770995440485,-17766.4049671,0.00024805,2]
[405321676,1770995440495,-510.1591,0.00024805,2]
[405321678,1770995440505,-510.1591,0.00024805,3]
[405321680,1770995440515,-403.4918,0.00024805,5]
[405321682,1770995440527,-500.0,0.00024821,5]
[405321684,1770995440536,-208.95499095,0.00024832,3]
[405321686,1770995440545,-170.0,0.00024863,2]
[405321687,1770995440554,-708.22,0.00024877,3]
[405321689,1770995440563,-1416.45,0.0002489,3]
[405321691,1770995440573,-177.06,0.0002489,3]
[405321703,1770995440685,-531.19,0.0002489,3]
[405321705,1770995440694,-742.81808302,0.0002489,3]
[405321707,1770995440704,-416.1257876,0.00024898,3]
[405321708,1770995440714,-524.73,0.00024899,5]
[405321710,1770995440723,-3000.0,0.000249,2]
[405321712,1770995440732,-55080.9395459,0.000249,2]
[405321714,1770995440741,-500.0,0.00024943,5]
[405321716,1770995440751,-524.73,0.00024952,5]
[405321718,1770995440761,-500.0,0.00024953,5]
[405321720,1770995440771,-2007.15988958,0.00024953,2]
[405321722,1770995440780,-18360.313182,0.0002498,2]
[405321724,1770995440791,-173.0,0.00024984,2]
[405321726,1770995440800,-500.0,0.00024989,5]
[405321728,1770995440809,-524.73,0.00024999,5]
[405321730,1770995440819,-524.73,0.00024999,5]
[405321732,1770995440828,-12317.93601078,0.00025,15]
[405321734,1770995440837,-5254.88521389,0.00025,30]
[405321736,1770995440846,-3000.0,0.00025,2]
[405321738,1770995440855,-785.0,0.00025,2]
[405321740,1770995440864,-207217.08,0.00025,2]
[405321742,1770995440872,-500.0,0.00025049,5]
[405321744,1770995440881,-168.0,0.00025131,2]
[405321746,1770995440890,-173.0,0.00025145,2]
[405321748,1770995440899,-6404.44202086,0.00025153,3]
[405321750,1770995440908,-278.0,0.00025178,2]
[405321751,1770995440919,-382.315162,0.000252,2]
[405321753,1770995440929,-410.83311523,0.0002521,2]
[405321755,1770995440938,-18360.313182,0.00025257,2]
[405321757,1770995440947,-500.0,0.00025266,5]
[405321759,1770995440956,-500.0,0.00025276,5]
[405321761,1770995440965,-500.0,0.00025276,5]
[405321763,1770995440975,-500.0,0.00025276,5]
[405321765,1770995440983,-500.0,0.00025276,5]
[405321767,1770995440994,-500.0,0.00025276,5]
[405321769,1770995441005,-500.0,0.00025276,5]
[405321771,1770995441014,-274.73600548,0.00025276,5]
[405321773,1770995441026,-524.73,0.00025276,5]
[405321775,1770995441035,-524.73,0.00025276,5]
[405321777,1770995441044,-524.73,0.00025276,5]
[405321779,1770995441053,-524.73,0.00025276,5]
[405321781,1770995441063,-524.73,0.00025276,5]
[405321783,1770995441072,-524.73,0.00025276,5]
[405321785,1770995441081,-524.73,0.00025276,5]
[405321787,1770995441089,-524.73,0.00025276,5]
[405321789,1770995441098,-524.73,0.00025276,5]
[405321791,1770995441107,-524.73,0.00025276,5]
[405321793,1770995441115,-524.73,0.00025276,5]
[405321795,1770995441125,-524.73,0.00025276,5]
[405321797,1770995441134,-524.73,0.00025276,5]
[405321798,1770995441143,-524.8290274,0.00025276,5]
[405321800,1770995441153,-214.05360635,0.00025276,2]
[405321802,1770995441165,-6737.35364854,0.00025277,2]
[405321804,1770995441174,-7466.7104694,0.00025277,2]
[405321806,1770995441184,-18360.313182,0.00025277,2]
[405321808,1770995441194,-658.48,0.00025277,2]
[405321810,1770995441204,-658.48,0.00025277,2]
[405321812,1770995441214,-658.48,0.00025277,2]
[405321814,1770995441225,-658.48,0.00025277,2]
[405321817,1770995441235,-658.48,0.00025277,2]
[405321818,1770995441244,-658.48,0.00025277,2]
[405321820,1770995441254,-658.48,0.00025277,2]
[405321822,1770995441263,-658.48,0.00025277,2]
[405321824,1770995441273,-658.48,0.00025277,2]
[405321826,1770995441283,-658.48,0.00025277,2]
[405321829,1770995441293,-658.48,0.00025277,2]
[405321830,1770995441302,-658.48,0.00025277,2]
[405321832,1770995441312,-658.48,0.00025277,2]
[405321834,1770995441322,-1187.4,0.00025277,2]
[405321836,1770995441331,-6845.50667915,0.00025287,2]
[405321838,1770995441340,-20339.94136226,0.00025287,2]
[405321840,1770995441351,-526.7155623,0.0002529,2]
[405321842,1770995441361,-276.65,0.000253,2]
[405321844,1770995441370,-783.32,0.000253,14]
[405321846,1770995441380,-151.0,0.000253,13]
[405321848,1770995441389,-151.0,0.000253,13]
[405321850,1770995441398,-468.0,0.00025345,2]
[405321852,1770995441412,-150.0,0.0002536,2]
[405321855,1770995441422,-962.3976827,0.00025514,2]
[405321857,1770995441431,-36720.6263639,0.00025522,2]
[405321858,1770995441440,-52008.14962536,0.00025532,2]
[405321861,1770995441455,-1871.03971792,0.00025532,2]
[405321863,1770995441466,-1201.75020262,0.00025532,2]
[405321865,1770995441477,-220.28506574,0.00025532,2]
[405321867,1770995441486,-8366.48346364,0.00025542,2]
[405321869,1770995441580,-67966.01499179,0.00025542,2]
[405321972,1770995446232,-151.0,0.00024221,2]
[405321973,1770995446242,-500.0,0.00024223,2]
[405321974,1770995446252,-500.0,0.00024223,2]
[405321975,1770995446262,-357.50621606,0.00024223,2]
[405321976,1770995446271,-1879.87957012,0.00025542,2]
[405321988,1770995446591,-268.87030624,0.00025542,2]
[405321989,1770995446653,-3017.12203,0.00025542,2]
[405321991,1770995447566,-85252.55852401,0.00025542,2]
[405321993,1770995447577,-4630.95979785,0.00025542,2]
[405321995,1770995447588,-182.8559,0.00025551,2]
[405321997,1770995447598,-565.36453115,0.00025579,2]
[405321998,1770995447607,-171.0,0.00025586,2]
[405321999,1770995447616,-366.64,0.000256,7]
[405322000,1770995447626,-1657.19,0.000256,2]
[405322001,1770995447635,-13923.58,0.00025633,10]
[405322002,1770995447644,-8571.7463421,0.00025643,3]
[405322003,1770995447654,-1682.168825,0.0002572,2]
[405322004,1770995447665,-173.0,0.00025767,2]
[405322005,1770995447675,-204.79,0.00025793,2]
[405322006,1770995447684,-18360.313182,0.00025797,2]
[405322007,1770995447693,-941.36,0.00025807,2]
[405322008,1770995447703,-168.0,0.00025807,2]
[405322009,1770995447712,-173.0,0.0002586,7]
[405322010,1770995447721,-55080.9395459,0.0002598,2]
[405322011,1770995447730,-220.28506574,0.0002598,2]
[405322012,1770995447739,-693.0,0.0002599,2]
[405322013,1770995447749,-500.0,0.00025999,2]
[405322014,1770995447758,-532.12093084,0.00026,2]
[405322015,1770995447767,-19900.0,0.00026,2]
[405322016,1770995447777,-185.0,0.00026,7]
[405322017,1770995447787,-468.0,0.00026004,2]
[405322018,1770995447796,-231.54870414,0.00026004,2]
[405322019,1770995447806,-18360.313182,0.0002609,2]
[405322020,1770995447815,-1624.6135852,0.000261,7]
[405322021,1770995447825,-10739.05066334,0.00026134,3]
[405322022,1770995447835,-195.47413102,0.0002616,2]
[405322023,1770995447845,-300.0,0.0002626,2]
[405322024,1770995447854,-380.0,0.0002626,2]
[405322025,1770995447864,-173.0,0.00026273,2]
[405322026,1770995447873,-468.0,0.00026316,2]
[405322027,1770995447882,-1680.0,0.0002638,2]
[405322028,1770995447892,-644.66,0.000264,3]
[405322029,1770995447901,-173.0,0.00026421,2]
[405322030,1770995447914,-307.83965359,0.00026433,2]
[405322031,1770995447924,-173.0,0.00026445,2]
[405322032,1770995447933,-469.0540367,0.00026524,2]
[405322033,1770995447943,-12906.35498459,0.00026624,3]
[405322034,1770995447952,-742.81808302,0.000267,3]
[405322035,1770995447962,-16375.02209493,0.000267,2]
[405322036,1770995469403,500.0,0.00013273,2]
[405322037,1770995469460,1000.0,0.00013821,2]
[405322038,1770995469509,209.373,0.00014368,2]
[405322039,1770995472133,500.0,0.00013699,2]
[405322040,1770995472197,427.23212292,0.00014247,2]
[405322041,1770995473223,504.56812742,0.00013273,2]
[405322042,1770995479083,500.0,0.00013273,2]
[405322043,1770995479115,689.82281843,0.00013821,2]
[405322044,1770995484535,641.09180111,0.00013699,2]
[405322045,1770995526847,608.85867518,0.00013273,2]
[405322046,1770995832435,509.1139309,0.00023492,2]
[405322047,1770995840250,1000.0,0.00023306,30]
[405322049,1770996011456,586.31061721,0.00013273,2]
[405322050,1770996064614,500.0,0.00013273,2]
[405322051,1770996064663,675.56979494,0.00013821,2]
[405322052,1770996126637,455.60127165,0.00013273,2]
[405322053,1770996166592,256.23,0.000235,2]
[405322062,1770996308339,500.0,0.00013273,2]
[405322063,1770996308430,358.74399458,0.00013821,2]
[405322064,1770996311023,500.0,0.00013273,2]
[405322065,1770996344132,-300.0,0.00023507,2]
[405322066,1770996344154,-624.10420312,0.00023507,2]
[405322070,1770996384689,219829.710298,0.00023549,120]
[405322071,1770996400095,-300.0,0.00023506,2]
[405322072,1770996400117,-170.76221784,0.00023506,2]
[405322073,1770996429313,4234.77803402,0.00030137,120]
[405322074,1770996432088,-155.0,0.00023505,2]
[405322075,1770996432112,-300.0,0.00023505,2]
[405322076,1770996432136,-300.0,0.00023505,2]
[405322077,1770996432158,-46.77058158,0.00023506,2]
[405322078,1770996510134,15464.66606485,0.00017,2]
[405322079,1770996517751,189.345115,0.00022631,2]
[405322080,1770996550243,-173.46,0.00023504,2]
[405322081,1770996562090,-126.54,0.00023504,2]
[405322082,1770996562113,-500.0,0.00023505,2]
[405322083,1770996562135,-500.0,0.00023505,2]
[405322084,1770996562156,-500.0,0.00023505,2]
[405322085,1770996562179,-500.0,0.00023505,2]
[405322086,1770996562202,-500.0,0.00023505,2]
[405322087,1770996562223,-500.0,0.00023505,2]
[405322088,1770996562252,-500.0,0.00023505,2]
[405322089,1770996562276,-500.0,0.00023505,2]
[405322090,1770996562297,-500.0,0.00023505,2]
[405322091,1770996562318,-260.55971685,0.00023505,2]
[405322092,1770996562345,-500.0,0.00023505,2]
[405322093,1770996562369,-269.61051122,0.00023505,2]
[405322094,1770996566083,-230.38948878,0.00023505,2]
[405322095,1770996566105,-181.21051122,0.00023505,2]
[405322096,1770996572092,-318.78948878,0.00023505,2]
[405322097,1770996572114,-431.79568073,0.00023505,2]
[405322098,1770996599798,3272.85007002,0.00023407,2]
[405322099,1770996607341,501.149941,0.00013273,2]
[405322147,1770996632387,-300.0,0.00023504,2]
[405322149,1770996632397,-702.81800875,0.00023504,2]
[405322152,1770996632429,-497.18199125,0.00023504,2]
[405322154,1770996632442,-34.02595939,0.00023504,2]
[405322158,1770996632458,-465.97404061,0.00023504,2]
[405322160,1770996632467,-500.0,0.00023504,2]
[405322162,1770996632476,-511.26832022,0.00023504,2]
[405322164,1770996632486,-500.0,0.00023504,2]
[405322167,1770996632496,-500.0,0.00023504,2]
[405322170,1770996632506,-500.0,0.00023504,2]
[405322172,1770996632516,-500.0,0.00023504,2]
[405322173,1770996632526,-500.0,0.00023504,2]
[405322175,1770996632537,-449.18645868,0.00023504,2]
[405322203,1770996638485,-50.81354132,0.00023504,2]
[405322205,1770996638495,-500.0,0.00023504,2]
[405322207,1770996638504,-520.07822734,0.00023504,2]
[405322208,1770996638514,-444.83338556,0.00023504,2]
[405322209,1770996638525,-55.16661444,0.00023504,2]
[405322210,1770996638534,-618.89898323,0.00023504,2]
[405322211,1770996638544,-626.05597169,0.00023504,2]
[405322212,1770996638553,-500.0,0.00023504,2]
[405322213,1770996638562,-500.0,0.00023504,2]
[405322214,1770996638571,-500.0,0.00023504,2]
[405322215,1770996638581,-500.0,0.00023504,2]
[405322216,1770996638591,-500.0,0.00023504,2]
[405322217,1770996638600,-500.0,0.00023504,2]
[405322218,1770996638614,-500.0,0.00023504,2]
[405322219,1770996638625,-362.61005334,0.00023504,2]
[405322453,1770996641126,-137.38994666,0.00023504,2]
[405322455,1770996641135,-500.0,0.00023504,2]
[405322458,1770996641149,-500.0,0.00023504,2]
[405322459,1770996641158,-500.0,0.00023504,2]
[405322461,1770996641168,-174.67781875,0.00023504,2]
[405322463,1770996641177,-500.0,0.00023504,2]
[405322465,1770996641186,-500.0,0.00023504,2]
[405322467,1770996641195,-500.0,0.00023504,2]
[405322469,1770996641204,-500.0,0.00023504,2]
[405322471,1770996641215,-500.0,0.00023504,2]
[405322474,1770996641224,-500.0,0.00023504,2]
[405322476,1770996641233,-137.61092182,0.00023504,2]
[405322703,1770996648100,5000.0,0.000235,2]
[405322704,1770996655856,2256.6574605,0.000235,2]
[405322705,1770996664158,5000.0,0.000235,2]
[405322706,1770996671921,5000.0,0.000235,2]
[405322707,1770996687328,2154.04137476,0.000235,2]
[405322708,1770996695104,5000.0,0.000235,2]
[405322709,1770996699973,209.79,0.00030136,120]
[405322710,1770996717062,5000.0,0.000235,2]
[405322711,1770996720413,-300.0,0.00023503,2]
[405322712,1770996720446,-1202.1546774,0.00023504,2]
[405322713,1770996720472,-300.0,0.00023504,2]
[405322714,1770996720486,-1202.1546774,0.00023504,2]
[405322715,1770996720501,-2483.6906452,0.00023504,2]
[405322717,1770996739381,5000.0,0.000235,2]
[405322718,1770996742367,209.79,0.00030136,120]
[405322719,1770996747118,765.90323419,0.000235,2]
[405322720,1770996762008,5000.0,0.000235,2]
[405322721,1770996771028,209.79,0.00030136,120]
[405322722,1770996783881,2627.59999998,0.000235,2]
[405322723,1770996819442,209.79,0.00030136,120]
[405322724,1770996862006,209.79,0.00030136,120]
[405322725,1770996889775,209.79,0.00030136,120]
[405322726,1770996913892,436.77871394,0.00013699,2]
[405322727,1770996915888,1000.0,0.00014247,2]
[405322728,1770996915942,599.59195924,0.00014795,2]
[405322729,1770996916001,500.0,0.00013699,2]
[405322730,1770996917029,209.79,0.00030136,120]
[405322731,1770996922505,510.65295815,0.00013273,2]
[405322733,1770996941600,213.0,0.00030137,120]
[405322734,1770996970911,500.0,0.00013699,2]
[405322735,1770996973183,500.0,0.00013273,2]
[405322736,1770996973237,1000.0,0.00013821,2]
[405322737,1770996973285,1575.8869344,0.00014368,2]
[405322738,1770997023866,513.12656674,0.00013273,2]
[405322739,1770997031257,500.0,0.00013699,2]
[405322740,1770997031314,1063.73414334,0.00014247,2]
[405322741,1770997031647,1000.0,0.00014247,2]
[405322742,1770997031680,647.18008496,0.00014795,2]
[405322743,1770997031748,500.0,0.00013699,2]
[405322744,1770997033839,500.0,0.00013273,2]
[405322745,1770997034008,500.0,0.00013273,2]
[405322746,1770997034060,1000.0,0.00013821,2]